bitfinex-derivatives/quotes_ETHF0:USTF0_20260310
["timestamp","ask_amount","ask_price","bid_price","bid_amount"]
[1773114454984,4.27222433,2024.8,2024.0,1.07020137]
[1773114455384,0.24528405,2024.7,2024.3,0.74341728]
[1773114455588,4.02694028,2024.8,2024.1,1.07020137]
[1773114455786,4.2546216,2024.8,2024.3,0.74341728]
[1773114455993,4.2546216,2024.8,2024.3,1.81361865]
[1773114456183,4.02694028,2024.8,2024.3,1.07020137]
[1773114456381,0.00500321,2024.8,2024.3,1.07020137]
[1773114456790,0.00500321,2024.8,2024.7,0.74341728]
[1773114456989,0.00500321,2024.8,2024.4,1.07020137]
[1773114457190,4.02193707,2025.2,2024.4,1.07020137]
[1773114457387,4.24790061,2025.2,2024.7,0.74341728]
[1773114457589,4.24790061,2025.2,2024.5,1.07020137]
[1773114457783,4.02193707,2025.1,2024.8,0.74341728]
[1773114457986,4.02193707,2025.2,2024.6,1.07020137]
[1773114458187,0.0057455,2025.2,2024.6,1.07020137]
[1773114458387,0.22807929,2025.2,2024.6,1.07020137]
[1773114458587,0.0057455,2025.2,2024.6,1.07020137]
[1773114458790,0.22807929,2025.2,2024.9,0.51884992]
[1773114459190,0.22807929,2025.2,2024.6,1.07020137]
[1773114459890,0.22807929,2025.2,2025.0,0.51884992]
[1773114460091,0.0057455,2025.2,2025.0,0.51884992]
[1773114460393,0.0057455,2025.2,2025.1,0.51884992]
[1773114460595,0.0057455,2025.2,2024.7,1.14514831]
[1773114460891,0.0057455,2025.2,2025.1,0.50830323]
[1773114461796,7.11478232,2025.2,2024.7,1.14514831]
[1773114461991,0.0057455,2025.2,2024.7,1.14514831]
[1773114462691,0.04911469,2025.2,2024.7,1.14514831]
[1773114463591,0.04911469,2025.2,2023.9,1.14408467]
[1773114463793,0.04274291,2024.9,2023.9,1.14408467]
[1773114464095,6.72489559,2025.1,2023.9,1.14408467]
[1773114464290,7.10599269,2025.0,2023.9,1.14408467]
[1773114464490,6.72489559,2025.1,2023.9,1.14408467]
[1773114464793,7.10678885,2025.0,2023.9,1.14408467]
[1773114464993,6.72489559,2025.1,2023.9,1.14408467]
[1773114465195,7.10652428,2025.0,2023.9,1.14408467]
[1773114465395,6.72489559,2025.1,2023.9,1.14408467]
[1773114465694,7.10401266,2025.0,2023.9,1.14408467]
[1773114465989,6.72489559,2025.1,2023.9,1.14408467]
[1773114466193,7.10247859,2025.0,2023.9,1.14408467]
[1773114466488,6.72489559,2025.1,2023.9,1.14408467]
[1773114466489,6.68488,2025.1,2023.9,1.14408467]
[1773114466692,7.10244201,2025.0,2023.9,1.14408467]
[1773114466891,6.68488,2025.1,2023.9,1.14408467]
[1773114468797,6.4710572,2025.1,2023.9,1.14408467]
[1773114469096,0.0330572,2025.1,2023.9,1.14408467]
[1773114469292,0.03682698,2025.2,2023.9,1.14408467]
[1773114469496,0.03682698,2025.2,2024.0,1.14427713]
[1773114469691,7.13375791,2025.1,2024.0,1.14427713]
[1773114469997,0.03108148,2025.1,2024.0,1.14427713]
[1773114470195,0.0057455,2025.2,2024.0,1.14427713]
[1773114470399,0.03746858,2025.2,2024.0,1.14427713]
[1773114470899,0.0057455,2025.2,2024.0,1.14427713]
[1773114473400,0.24682,2025.6,2024.4,1.14114469]
[1773114473800,4.02520577,2026.0,2024.6,1.14114469]
[1773114473994,7.12664563,2025.9,2024.8,1.13848386]
[1773114474297,0.0060242,2025.9,2024.8,1.13848386]
[1773114474797,0.0060242,2025.9,2025.0,1.13848386]
[1773114475195,0.0060242,2025.9,2025.1,1.13852342]
[1773114475698,0.0060242,2025.9,2024.6,1.13852342]
[1773114475699,0.03255325,2025.7,2024.6,1.13852342]
[1773114476096,0.31923531,2025.8,2024.6,1.13852342]
[1773114476298,7.13874762,2025.7,2024.7,1.1185824]
[1773114476596,0.0060242,2025.9,2024.7,1.1185824]
[1773114476801,7.13743491,2025.8,2024.7,1.1185824]
[1773114477002,0.0060242,2025.9,2024.9,1.11863985]
[1773114477198,7.1378783,2025.8,2024.9,1.11863985]
[1773114477404,0.07435216,2025.9,2025.0,1.11863985]
[1773114477598,7.1401085,2025.8,2025.0,1.11863985]
[1773114477801,0.07435216,2025.9,2025.0,1.11863985]
[1773114478103,7.13379181,2025.8,2025.0,1.11863985]
[1773114478305,0.0060242,2025.9,2025.0,1.11863985]
[1773114478498,7.13517493,2025.8,2025.0,1.11863985]
[1773114478802,0.0060242,2025.9,2025.0,1.11863985]
[1773114478997,0.06164439,2025.7,2025.0,1.11863985]
[1773114479199,0.06164439,2025.5,2024.6,1.12097498]
[1773114479406,7.19920743,2025.4,2024.6,1.12097498]
[1773114479610,7.13756304,2025.3,2024.6,1.12097498]
[1773114479903,4.04919825,2025.5,2024.6,1.12097498]
[1773114480094,7.1367771,2025.4,2024.6,1.12097498]
[1773114480297,6.67597899,2025.3,2024.6,1.12097498]
[1773114480506,1.06468312,2025.5,2024.6,1.12097498]
[1773114480798,1.06468312,2025.5,2024.1,40.8]
[1773114480799,1.06468312,2025.4,2024.7,1.09035862]
[1773114481198,5.08988889,2025.4,2024.7,1.09035862]
[1773114481502,5.08988889,2025.6,2024.7,1.09035862]
[1773114481700,1.06468312,2025.3,2024.7,1.09035862]
[1773114481900,4.02520577,2025.4,2024.7,1.09035862]
[1773114482095,5.08988889,2025.5,2024.7,1.09035862]
[1773114482501,1.06468312,2025.3,2024.7,0.23770461]
[1773114483702,5.29024628,2025.4,2024.7,0.23770461]
[1773114483897,1.26504051,2025.3,2024.7,0.23770461]
[1773114484500,1.26504051,2024.9,2024.0,1.16152529]
[1773114484702,5.29024628,2024.9,2024.0,1.16152529]
[1773114484897,1.26504051,2024.8,2024.0,1.16152529]
[1773114485305,5.29024628,2024.8,2024.0,1.16152529]
[1773114486507,1.26504051,2024.8,2024.0,1.16152529]
[1773114486800,4.02520577,2024.9,2024.0,1.16152529]
[1773114487203,5.29024628,2025.0,2024.0,1.16152529]
[1773114487600,4.02520577,2025.1,2024.0,1.16152529]
[1773114487804,3.51565534,2025.2,2024.2,1.16152529]
[1773114488004,1.26504051,2025.3,2024.2,1.16152529]
[1773114488910,1.26504051,2025.5,2024.4,1.16152529]
[1773114489104,6.05528143,2025.6,2024.4,1.16152529]
[1773114489309,7.32032194,2025.7,2024.6,1.16152529]
[1773114489510,1.26504051,2025.7,2024.6,1.16152529]
[1773114489911,7.32634614,2025.9,2024.6,1.16152529]
[1773114490108,1.27106471,2025.9,2024.6,1.16152529]
[1773114490410,1.27106471,2025.9,2024.8,1.16152529]
[1773114491109,1.26504051,2025.8,2024.8,1.16152529]
[1773114491508,1.51184051,2025.8,2024.8,1.16152529]
[1773114491905,1.26504051,2025.8,2024.8,1.16152529]
[1773114492510,1.26504051,2025.6,2024.9,1.16152529]
[1773114492710,1.26504051,2025.8,2024.9,1.16152529]
[1773114492911,7.08429713,2025.7,2024.9,1.16152529]
[1773114493113,0.0060242,2025.9,2024.9,1.16152529]
[1773114493311,8.34958275,2025.8,2025.1,1.16152529]
[1773114493509,7.08454224,2025.7,2025.1,1.16152529]
[1773114493708,0.0060242,2025.9,2025.1,1.16152529]
[1773114493906,7.0851634,2025.8,2025.1,1.16152529]
[1773114494108,6.43258533,2025.7,2025.1,1.16152529]
[1773114494309,0.0060242,2025.9,2025.1,1.16152529]
[1773114494912,1.27106471,2025.9,2025.1,1.16152529]
[1773114495107,1.51785471,2025.9,2024.7,1.16152529]
[1773114495513,1.26504051,2025.8,2024.8,1.16152529]
[1773114495912,1.26504051,2025.4,2024.6,1.16152529]
[1773114496110,1.26504051,2025.4,2023.7,0.00478604]
[1773114496111,1.26504051,2025.4,2024.4,1.16152529]
[1773114497621,1.26504051,2025.4,2024.5,1.16152529]
[1773114503221,1.26504051,2025.4,2024.4,13.251]
[1773114503222,1.26504051,2025.8,2024.7,1.16152529]
[1773114503622,0.0060242,2025.9,2024.7,1.16152529]
[1773114503923,1.27106471,2025.9,2024.9,1.16152529]
[1773114504121,1.27106471,2025.9,2025.1,1.16152529]
[1773114504326,0.0060242,2025.9,2025.1,1.16152529]
[1773114504520,1.27106471,2025.9,2025.0,13.255]
[1773114504719,1.27106471,2025.9,2025.0,14.41652529]
[1773114505126,1.27106471,2025.9,2025.1,1.16152529]
[1773114505326,0.0060242,2025.9,2025.1,1.16152529]
[1773114505719,1.27106471,2025.9,2025.2,13.256]
[1773114505922,1.27106471,2025.9,2025.2,13.26189697]
[1773114506525,1.27106471,2025.9,2025.2,0.00589697]
[1773114506731,1.26504051,2025.7,2025.2,1.16742226]
[1773114507230,1.27106471,2025.9,2025.2,1.16742226]
[1773114507431,0.0060242,2025.9,2025.2,1.16742226]
[1773114507821,1.26504051,2026.3,2025.4,1.16152529]
[1773114508236,1.26504051,2026.5,2025.4,1.16152529]
[1773114508531,1.26504051,2026.8,2025.6,1.16152529]
[1773114508736,8.31700796,2026.7,2025.6,1.16152529]
[1773114508929,1.2697338,2026.8,2025.6,1.16152529]
[1773114509128,1.26504051,2026.6,2025.8,1.16152529]
[1773114509328,1.26504051,2026.6,2025.9,13.255]
[1773114509531,1.26504051,2026.6,2025.7,14.41652529]
[1773114509728,1.51174051,2026.6,2025.5,55.21752529]
[1773114509930,1.26504051,2026.4,2025.5,14.41752529]
[1773114510129,1.26504051,2026.2,2025.5,14.41752529]
[1773114510624,1.26504051,2026.2,2025.3,41.96152529]
[1773114510830,1.26504051,2026.0,2025.2,1.16742226]
[1773114512234,1.26504051,2026.4,2025.2,1.16742226]
[1773114512433,1.26504051,2026.2,2025.2,1.16742226]
[1773114513737,1.26504051,2026.2,2025.2,0.00589697]
[1773114514539,1.26504051,2026.2,2025.2,1.22173807]
[1773114514730,1.28189694,2026.0,2025.2,1.22173807]
[1773114517039,1.28189694,2026.0,2025.2,0.00589697]
[1773114517240,1.28189694,2025.8,2025.2,0.00589697]
[1773114520336,1.28189694,2025.6,2024.6,1.2158411]
[1773114520637,1.28189694,2025.4,2024.6,1.2158411]
[1773114521232,1.28189694,2025.4,2024.6,1.21945011]
[1773114522136,1.28189694,2025.4,2024.6,0.00360901]
[1773114523444,1.28189694,2025.4,2024.6,1.21945011]
[1773114524540,1.28189694,2025.4,2024.6,0.00360901]
[1773114529545,1.28189694,2025.4,2024.6,1.22951031]
[1773114530543,1.20301534,2025.7,2024.6,1.22951031]
[1773114530739,1.20301534,2025.9,2024.8,1.2259013]
[1773114530941,1.20301534,2025.9,2025.0,1.2259013]
[1773114531246,1.20301534,2026.3,2025.0,1.2259013]
[1773114531545,1.20301534,2026.1,2025.0,1.2259013]
[1773114531746,8.27026735,2026.0,2025.0,1.2259013]
[1773114532047,1.20301534,2026.0,2025.0,1.2259013]
[1773114532244,1.20301534,2026.3,2025.2,1.2259013]
[1773114532446,7.06915805,2026.2,2025.2,1.2259013]
[1773114532644,1.20301534,2026.3,2025.2,1.2259013]
[1773114532843,7.07188741,2026.2,2025.2,1.2259013]
[1773114533045,1.20301534,2026.3,2025.2,1.2259013]
[1773114533449,1.20301534,2026.3,2025.4,1.2259013]
[1773114534046,1.20301534,2026.3,2025.6,1.2259013]
[1773114535147,1.20301534,2026.6,2025.6,1.2259013]
[1773114535349,1.20770863,2026.8,2025.6,1.4727213]
[1773114535548,1.20770863,2026.8,2025.8,1.2259013]
[1773114536846,1.20770863,2026.8,2025.6,0.24682]
[1773114537052,1.20301534,2026.6,2025.4,1.2259013]
[1773114537248,1.20301534,2026.4,2025.4,1.2259013]
[1773114537650,1.20301534,2026.7,2025.6,1.2259013]
[1773114537843,1.20301534,2026.6,2025.6,1.2259013]
[1773114538043,1.20301534,2026.4,2025.4,1.2259013]
[1773114539249,1.20301534,2026.4,2025.5,1.2259013]
[1773114539850,1.20301534,2026.2,2025.5,1.2259013]
[1773114540450,1.20301534,2026.7,2025.7,1.2259013]
[1773114540949,1.20301534,2026.7,2025.8,14.3819013]
[1773114541152,1.20301534,2026.5,2025.4,1.2259013]
[1773114541350,1.20301534,2026.3,2025.4,1.2259013]
[1773114541553,1.20301534,2026.1,2025.4,1.2259013]
[1773114541952,1.20301534,2026.5,2025.4,1.2259013]
[1773114542251,1.20301534,2026.4,2025.4,1.2259013]
[1773114542455,1.20301534,2026.2,2025.1,13.098]
[1773114542655,1.20301534,2026.2,2025.2,1.2259013]
[1773114543056,1.20301534,2026.0,2025.2,1.2259013]
[1773114543559,1.20301534,2026.0,2025.2,55.0149013]
[1773114543857,0.24679,2025.9,2025.0,1.15873327]
[1773114544060,1.22669123,2025.6,2024.6,1.16234228]
[1773114544359,1.22669123,2025.6,2024.7,1.15873327]
[1773114545356,1.22669123,2026.0,2024.7,1.15873327]
[1773114545549,6.30203143,2026.2,2024.9,1.15873327]
[1773114545550,1.22669123,2025.8,2024.9,1.15873327]
[1773114545748,1.22669123,2026.2,2024.9,1.15873327]
[1773114545957,1.22669123,2026.1,2024.9,1.15873327]
[1773114546357,1.22669123,2026.1,2025.1,4.09363223]
[1773114546555,1.22669123,2026.1,2025.3,1.15873327]
[1773114546859,1.22669123,2026.6,2025.3,1.15873327]
[1773114547059,1.22669123,2026.4,2025.3,1.15873327]
[1773114547862,1.22669123,2026.7,2025.8,1.15873327]
[1773114548063,1.22669123,2026.6,2025.9,14.05973327]
[1773114548555,1.22669123,2026.6,2026.0,1.15873327]
[1773114548959,1.22669123,2026.6,2025.5,1.15873327]
[1773114549160,1.22669123,2026.6,2025.7,1.15873327]
[1773114549360,1.22669123,2026.6,2025.8,1.15873327]
[1773114551364,0.00469329,2026.8,2025.8,1.15873327]
[1773114551365,1.23138452,2026.8,2025.8,1.15873327]
[1773114551961,1.23138452,2026.8,2026.0,1.15873327]
[1773114552262,0.00469329,2026.8,2026.1,1.15873327]
[1773114552464,0.00469329,2026.8,2026.1,1.16487768]
[1773114553258,1.22669123,2027.3,2026.1,1.16487768]
[1773114553558,4.30241456,2027.4,2026.1,1.16487768]
[1773114553559,1.22669123,2027.4,2026.4,1.15873327]
[1773114553757,1.22669123,2027.4,2026.6,1.15873327]
[1773114554158,1.2321695,2027.4,2026.6,1.15873327]
[1773114554564,1.2321695,2027.4,2026.7,13.05]
[1773114555067,1.2321695,2027.4,2026.7,13.057]
[1773114555465,1.2321695,2027.4,2026.6,13.065]
[1773114556066,1.2321695,2027.4,2026.6,14.22373327]
[1773114556662,1.2321695,2027.4,2026.7,1.15873327]
[1773114557171,0.00547827,2027.4,2026.7,1.15873327]
[1773114557769,1.22669123,2027.6,2026.7,1.15873327]
[1773114558874,1.23264236,2027.6,2026.7,1.15873327]
[1773114559074,1.23264236,2027.6,2026.8,14.26573327]
[1773114559574,1.23264236,2027.6,2026.7,1.15873327]
[1773114559774,1.23264236,2027.6,2026.8,13.113]
[1773114559974,1.23264236,2027.6,2026.7,1.15873327]
[1773114560174,1.23264236,2027.6,2026.8,1.15873327]
[1773114561376,1.23264236,2027.6,2026.8,13.126]
[1773114561575,1.23264236,2027.6,2026.8,14.28473327]
[1773114561778,1.23264236,2027.6,2026.8,13.126]
[1773114561974,1.23264236,2027.6,2026.7,13.132]
[1773114562178,1.23264236,2027.6,2026.7,14.29173327]
[1773114563386,1.23264236,2027.6,2026.7,14.30073327]
[1773114563885,1.23264236,2027.6,2026.8,1.15873327]
[1773114564587,1.23264236,2027.6,2026.7,13.146]
[1773114564784,1.23264236,2027.6,2026.7,14.30873327]
[1773114565686,1.23264236,2027.6,2026.8,1.15873327]
[1773114567893,1.23264236,2027.6,2027.0,1.15873327]
[1773114568088,0.24652,2028.1,2027.0,1.15873327]
[1773114568291,1.22669123,2027.9,2026.5,1.15873327]
[1773114568486,1.22669123,2027.9,2026.7,1.15873327]
[1773114568686,1.22669123,2027.9,2026.9,1.15873327]
[1773114569291,1.23221463,2027.9,2026.9,1.15873327]
[1773114570391,1.23221463,2027.9,2027.0,1.15873327]
[1773114572488,0.0055234,2027.9,2027.0,1.15873327]
[1773114573295,1.23221463,2027.9,2027.2,1.15873327]
[1773114574291,1.23221463,2027.9,2027.4,1.20678946]
[1773114574492,1.23221463,2027.9,2027.2,1.20678946]
[1773114574692,1.23221463,2027.9,2027.2,14.29178946]
[1773114575189,1.15823363,2027.8,2026.8,1.20678946]
[1773114575397,1.15823363,2027.6,2026.8,1.20678946]
[1773114575896,1.15823363,2027.4,2026.6,1.20678946]
[1773114576399,1.15823363,2027.4,2026.5,13.112]
[1773114576599,1.15823363,2027.2,2026.5,13.112]
[1773114576793,1.15823363,2027.2,2026.5,14.31878946]
[1773114577191,1.15823363,2027.2,2026.5,1.20678946]
[1773114578393,1.15823363,2027.2,2026.6,13.144]
[1773114578594,1.15823363,2027.2,2026.6,14.35078946]
[1773114578899,1.15823363,2027.2,2026.6,1.20678946]
[1773114581502,1.15823363,2027.1,2026.7,1.20678946]
[1773114583502,1.15823363,2027.3,2026.7,1.20678946]
[1773114583690,7.04765269,2027.2,2026.7,1.20678946]
[1773114583895,5.21403819,2027.5,2026.7,1.20678946]
[1773114584698,1.15823363,2027.5,2026.7,1.20678946]
[1773114584997,1.15823363,2027.6,2026.7,1.20678946]
[1773114587297,1.15823363,2027.6,2026.9,1.12165331]
[1773114587493,5.21403819,2027.8,2026.9,1.12165331]
[1773114587699,1.15823363,2027.8,2026.9,1.12165331]
[1773114588501,1.15823363,2027.8,2027.1,1.12620328]
[1773114590102,0.0055234,2027.9,2027.1,1.12620328]
[1773114590604,1.16375703,2027.9,2027.1,1.12620328]
[1773114592707,0.0055234,2027.9,2027.1,1.12620328]
[1773114593305,1.16428133,2028.1,2027.1,1.12620328]
[1773114593606,1.16428133,2028.3,2027.3,1.12127166]
[1773114594005,1.16428133,2028.5,2027.3,1.12127166]
[1773114594408,1.1698953,2028.5,2027.3,1.12127166]
[1773114594706,1.1698953,2028.5,2027.5,1.1260385]
[1773114595009,1.1698953,2028.5,2027.6,13.281]
[1773114595306,1.1698953,2028.5,2027.7,13.283]
[1773114595710,1.1698953,2028.5,2027.7,14.40940579]
[1773114595909,1.16428133,2028.3,2027.7,14.40940579]
[1773114596609,1.16428133,2028.3,2027.7,1.12640579]
[1773114596802,1.16428133,2028.3,2027.6,0.0054309]
[1773114596999,1.16428133,2028.3,2027.6,14.41515372]
[1773114597810,1.16428133,2028.3,2027.7,1.12375844]
[1773114598410,1.16428133,2028.3,2027.6,0.0054309]
[1773114598607,1.41080133,2028.1,2027.1,1.12411491]
[1773114598810,1.41080133,2028.1,2027.2,13.288]
[1773114599406,1.41080133,2028.1,2027.2,14.4124654]
[1773114599711,1.41080133,2028.1,2027.3,1.1244654]
[1773114600911,1.16428133,2027.9,2027.2,14.41939563]
[1773114601208,1.16428133,2027.9,2027.2,13.29361427]
[1773114602010,1.16428133,2027.9,2027.3,1.13113207]
[1773114602512,1.16428133,2028.1,2027.3,1.13113207]
[1773114603011,1.16428133,2027.9,2027.3,13.291]
[1773114603216,1.16428133,2027.9,2027.2,0.00361427]
[1773114603415,1.16428133,2027.9,2027.2,13.29461427]
[1773114603617,1.16428133,2027.9,2027.2,14.426069]
[1773114604216,1.16428133,2027.9,2027.3,1.15742332]
[1773114604515,1.2355671,2027.7,2027.2,0.00361427]
[1773114605311,1.2355671,2027.7,2026.9,14.45673821]
[1773114606119,1.2355671,2027.7,2027.0,1.16574874]
[1773114606418,1.2355671,2027.7,2027.0,1.17085426]
[1773114607119,1.2355671,2027.7,2027.0,0.00510552]
[1773114607418,1.2355671,2027.5,2026.6,1.16607733]
[1773114607814,1.2355671,2027.5,2026.7,13.098]
[1773114608216,1.2355671,2027.5,2026.7,13.10174922]
[1773114608415,1.2355671,2027.5,2026.7,14.26957002]
[1773114609721,1.2355671,2027.3,2026.7,0.00374922]
[1773114610518,1.2355671,2027.1,2026.4,13.065]
[1773114610718,1.2355671,2027.1,2026.5,1.16485349]
[1773114611224,1.2355671,2027.4,2026.5,1.16485349]
[1773114611424,1.2355671,2027.4,2026.5,1.1691219]
[1773114611619,5.29137166,2027.6,2026.5,1.1691219]
[1773114611819,1.2355671,2027.5,2026.5,1.1691219]
[1773114612321,1.2355671,2027.5,2026.6,14.26955699]
[1773114612519,1.2355671,2027.5,2026.7,14.27273702]
[1773114612823,1.2355671,2027.5,2026.7,1.15873702]
[1773114613223,1.2355671,2027.5,2026.6,13.123]
[1773114613414,1.2355671,2027.3,2026.6,13.123]
[1773114613618,1.2355671,2027.3,2026.6,14.27892553]
[1773114614225,1.2355671,2027.3,2026.7,1.16168057]
[1773114615627,1.2355671,2027.3,2026.5,14.33145551]
[1773114615818,1.2355671,2027.3,2026.5,13.17826841]
[1773114616023,1.2355671,2027.1,2026.5,0.00426841]
[1773114616218,1.26171525,2026.8,2024.9,15.27555716]
[1773114616423,1.26171525,2026.6,2025.0,19.50057]
[1773114616824,1.26171525,2026.6,2025.1,40.8]
[1773114617024,1.26171525,2026.6,2025.2,13.189]
[1773114617219,1.26760013,2026.6,2025.2,0.0062866]
[1773114617629,1.26172434,2026.4,2025.3,13.198]
[1773114617928,1.26172434,2026.4,2025.4,13.204]
[1773114618323,1.26172434,2026.4,2025.2,0.0062866]
[1773114618628,1.26172434,2026.4,2025.3,13.211]
[1773114619528,1.26172434,2026.4,2025.4,13.226]
[1773114619826,1.26172434,2026.4,2025.5,0.11658744]
[1773114620223,1.26172434,2026.4,2025.6,13.35358744]
[1773114620831,1.26172434,2026.4,2025.7,13.246]
[1773114621131,1.26172434,2026.4,2025.8,13.248]
[1773114621426,1.50845434,2026.4,2025.5,13.253]
[1773114621626,1.2355671,2026.3,2025.2,0.0062866]
[1773114621930,1.2355671,2026.1,2025.3,13.258]
[1773114622130,1.2355671,2026.1,2025.4,0.60658629]
[1773114622933,1.2355671,2026.5,2025.4,0.60658629]
[1773114623633,1.2355671,2026.9,2025.8,0.59804313]
[1773114624033,1.2355671,2026.9,2026.0,0.62488025]
[1773114624230,1.2355671,2026.9,2026.2,0.62488025]
[1773114624631,1.24098275,2026.9,2026.2,0.62488025]
[1773114625735,1.24098275,2026.9,2026.3,13.3]
[1773114625933,1.24098275,2026.9,2026.3,13.92229261]
[1773114626233,0.00541565,2026.9,2026.4,0.59269645]
[1773114626936,1.2355671,2027.6,2026.4,0.59269645]
[1773114627132,1.2355671,2027.4,2026.4,0.59269645]
[1773114627328,1.2355671,2027.4,2026.6,0.59015701]
[1773114627529,1.2355671,2027.4,2026.8,0.59015701]
[1773114627733,1.2355671,2027.4,2026.9,13.316]
[1773114628036,1.23999611,2027.4,2026.9,13.3216045]
[1773114628437,1.23999611,2027.4,2026.9,13.90359511]
[1773114628732,1.23999611,2027.4,2027.0,0.58199061]
[1773114629135,1.23999611,2027.4,2026.9,13.3216045]
[1773114629335,1.23999611,2027.4,2026.9,13.90353215]
[1773114630035,1.23999611,2027.4,2026.9,0.0056045]
[1773114630431,1.23999611,2027.4,2026.3,41.30265019]
[1773114630639,1.23999611,2027.4,2026.5,0.50265019]
[1773114630831,1.23999611,2027.4,2026.6,13.84065019]
[1773114631032,1.23999611,2027.4,2026.7,13.339]
[1773114631434,1.23999611,2027.4,2026.7,0.00468396]
[1773114631635,1.23999611,2027.4,2026.8,13.343]
[1773114633833,1.23999611,2027.4,2026.7,0.00468396]
[1773114634037,1.23999611,2027.4,2026.9,13.356]
[1773114636634,1.23999611,2027.4,2027.0,13.367]
[1773114637241,1.23999611,2027.4,2026.7,0.00468396]
[1773114637440,1.23999611,2027.4,2026.8,13.369]
[1773114637941,6.99365907,2027.3,2026.3,0.4147645]
[1773114638138,1.12741694,2027.2,2026.3,0.4147645]
[1773114638337,1.12741694,2027.2,2026.4,13.7847645]
[1773114638939,1.12741694,2027.2,2026.5,0.4137178]
[1773114640136,1.13184595,2027.4,2026.5,0.4137178]
[1773114640341,0.00442901,2027.4,2026.5,0.4137178]
[1773114640939,1.12741694,2027.8,2026.5,0.4137178]
[1773114641940,1.13345333,2027.8,2026.7,0.39943794]
[1773114642136,1.12741694,2027.6,2026.8,13.378]
[1773114642541,1.12741694,2027.6,2026.8,13.77642166]
[1773114642740,1.12741694,2027.6,2026.8,0.39842166]
[1773114642940,1.12741694,2027.6,2026.9,13.38]
[1773114643140,1.12741694,2027.6,2027.0,13.381]
[1773114643337,1.12741694,2027.6,2027.0,12.32305685]
[1773114644145,1.12741694,2027.6,2026.6,0.39843864]
[1773114644346,1.12741694,2027.4,2026.7,13.384]
[1773114645040,1.12741694,2027.4,2026.6,0.39843864]
[1773114645248,1.12741694,2027.4,2026.7,13.386]
[1773114645641,1.12741694,2027.4,2026.6,0.39843864]
[1773114645842,1.12741694,2027.4,2026.8,13.387]
[1773114646644,1.12741694,2027.4,2026.8,14.27934559]
[1773114646943,1.12741694,2027.4,2026.4,0.89817962]
[1773114647141,1.12741694,2027.4,2026.6,13.389]
[1773114647645,1.12741694,2027.4,2026.6,14.28075542]
[1773114648148,1.12741694,2027.2,2026.6,14.28075542]
[1773114648947,1.12741694,2027.2,2026.6,13.389]
[1773114649157,1.12741694,2027.2,2026.7,13.391]
[1773114649357,1.12741694,2027.2,2026.4,0.89952472]
[1773114649559,1.12741694,2027.2,2026.5,13.392]
[1773114649750,1.12741694,2027.0,2026.4,0.00583403]
[1773114649954,1.12741694,2027.0,2026.5,13.392]
[1773114650149,1.12741694,2027.0,2026.4,0.00583403]
[1773114650461,1.12741694,2026.8,2026.5,12.89621938]
[1773114651160,1.1696468,2027.0,2026.6,1.14660693]
[1773114651361,5.22545136,2027.2,2026.6,1.14660693]
[1773114651556,1.1696468,2027.4,2026.6,1.14660693]
[1773114651755,1.1696468,2027.3,2026.7,13.394]
[1773114651954,1.1696468,2027.3,2026.7,14.54060693]
[1773114652761,1.1696468,2027.4,2026.8,1.14660693]
[1773114653865,5.22545136,2027.6,2026.8,1.14660693]
[1773114654563,4.05580456,2027.7,2026.8,1.14660693]
[1773114655063,5.23148775,2027.8,2026.8,1.14660693]
[1773114656258,5.23148775,2027.8,2026.9,40.8]
[1773114656454,1.1696468,2027.7,2027.0,14.54160693]
[1773114656657,1.1696468,2027.7,2027.1,1.14660693]
[1773114657560,1.1696468,2027.7,2027.2,13.394]
[1773114657956,1.1696468,2027.7,2027.2,14.54060693]
[1773114660969,5.22545136,2028.0,2027.3,1.14660693]
[1773114661266,1.1696468,2028.0,2027.3,1.14660693]
[1773114662060,0.0038718,2028.0,2027.5,1.14660693]
[1773114662260,1.1696468,2028.2,2027.7,1.14660693]
[1773114662456,1.1696468,2028.0,2027.3,13.392]
[1773114662662,0.24657,2027.7,2027.2,13.2548417]
[1773114662859,1.1696468,2027.4,2026.5,1.14660693]
[1773114663061,1.1696468,2027.4,2026.6,14.53060693]
[1773114663266,1.1737591,2027.4,2026.6,14.53060693]
[1773114663470,1.1737591,2027.4,2026.7,13.377]
[1773114663669,1.18603819,2027.2,2026.7,14.63760335]
[1773114663866,1.18603819,2027.2,2026.8,1.26060335]
[1773114664871,1.18603819,2027.3,2026.9,14.63860335]
[1773114665169,1.18603819,2027.3,2026.4,1.26643738]
[1773114665170,1.18603819,2027.1,2026.4,1.26643738]
[1773114665375,1.18603819,2026.9,2026.4,0.00583403]
[1773114665573,1.18603819,2026.9,2026.4,14.64443738]
[1773114665780,1.18603819,2026.9,2026.4,0.00583403]
[1773114666072,1.18603819,2026.5,2025.2,1.26060335]
[1773114666271,1.18603819,2026.3,2025.2,1.26060335]
[1773114666472,1.18603819,2026.1,2025.2,1.26060335]
[1773114666675,1.18603819,2025.9,2025.3,13.144]
[1773114667070,1.19226904,2025.9,2025.3,14.41015228]
[1773114667270,1.19226904,2025.9,2025.3,1.26615228]
[1773114667470,1.19226904,2025.9,2025.3,0.00554893]
[1773114667672,1.18603819,2025.7,2025.0,13.168]
[1773114668573,1.18603819,2025.7,2025.0,14.42860335]
[1773114668772,1.18603819,2025.7,2025.0,14.43370673]
[1773114669170,1.19226904,2025.9,2025.1,1.26060335]
[1773114670278,0.00623085,2025.9,2025.1,1.26060335]
[1773114670976,0.00623085,2025.9,2025.3,1.26060335]
[1773114671282,1.18603819,2026.6,2025.5,1.26060335]
[1773114672277,0.00395575,2026.6,2025.5,1.26060335]
[1773114672675,1.18999394,2026.6,2025.5,1.26060335]
[1773114672870,1.18999394,2026.6,2025.7,1.26060335]
[1773114673076,1.18603819,2026.4,2025.7,13.273]
[1773114673272,1.18603819,2026.4,2025.7,13.278]
[1773114673675,1.18603819,2026.4,2025.0,0.00510338]
[1773114673877,1.18603819,2026.1,2025.1,1.26060335]
[1773114674082,1.18603819,2026.1,2025.2,1.26060335]
[1773114675684,1.18603819,2026.3,2025.2,1.26060335]
[1773114676484,1.18603819,2026.3,2025.4,1.26060335]
[1773114676885,1.18603819,2026.3,2025.6,1.26060335]
[1773114677084,1.18603819,2026.3,2025.7,1.26060335]
[1773114678186,1.18603819,2026.5,2025.9,1.26060335]
[1773114678483,0.00395575,2026.6,2025.9,1.26060335]
[1773114678682,1.18603819,2026.4,2025.1,1.26060335]
[1773114678881,1.18603819,2026.4,2025.7,1.26060335]
[1773114679186,1.18603819,2026.4,2025.8,13.257]
[1773114679386,1.18603819,2026.4,2025.8,13.264]
[1773114679581,1.18603819,2026.4,2025.5,1.26060335]
[1773114679887,1.18603819,2026.4,2025.5,13.269]
[1773114680487,1.18603819,2026.4,2025.6,1.26060335]
[1773114680983,1.43277819,2026.3,2025.1,1.26060335]
[1773114681186,1.43277819,2026.3,2025.0,0.00510338]
[1773114681187,1.43277819,2026.3,2025.3,1.26060335]
[1773114683683,5.27373982,2025.7,2025.0,0.00510338]
[1773114683881,1.18603819,2025.6,2024.8,13.218]
[1773114684083,1.18603819,2025.6,2023.5,6.3252]